bitfinex/quotes_ETHUSD_20250210
["timestamp","ask_amount","ask_price","bid_price","bid_amount"]
[1739163670881,3.80221,2630.1,2629.9,2.02725319]
[1739163671048,3.0,2630.0,2629.9,2.02725319]
[1739163671377,3.8025,2629.9,2629.5,2.02725319]
[1739163671546,3.80284,2629.7,2629.5,2.02725319]
[1739163671937,3.80285,2629.6,2629.5,2.02725319]
[1739163672145,3.80314,2629.4,2629.3,2.02725319]
[1739163672373,3.80295,2629.6,2629.3,2.02725319]
[1739163672580,3.80261,2629.8,2629.5,2.02725319]
[1739163672954,7.6053,2629.8,2629.5,2.02725319]
[1739163673274,3.80261,2629.8,2629.6,0.03953398]
[1739163673501,3.0,2629.8,2629.6,0.03953398]
[1739163673705,3.80234,2630.0,2629.6,0.03953398]
[1739163673998,3.80261,2629.8,2629.6,0.03953398]
[1739163674200,7.60532,2629.8,2629.6,0.03953398]
[1739163674387,3.80271,2629.7,2629.5,2.02725319]
[1739163674604,3.0,2630.0,2629.3,2.02725319]
[1739163674605,3.80285,2629.6,2629.3,2.02725319]
[1739163674894,3.80331,2629.3,2629.1,2.78605319]
[1739163675282,3.80303,2629.5,2629.2,0.03965626]
[1739163675606,3.80303,2629.5,2629.3,2.02725319]
[1739163675778,3.80303,2629.5,2629.3,2.06707542]
[1739163675978,3.80314,2629.4,2629.3,2.06707542]
[1739163676594,3.80343,2629.2,2629.1,2.02725319]
[1739163676797,0.8306,2629.1,2628.5,2.02725319]
[1739163676972,7.60822,2628.8,2628.5,2.02725319]
[1739163677315,3.80439,2628.6,2628.3,2.78605319]
[1739163678272,3.80448,2628.5,2628.3,2.02725319]
[1739163678477,3.80459,2628.4,2628.3,2.02725319]
[1739163678904,3.80439,2628.6,2628.3,2.02725319]
[1739163679294,3.80439,2628.6,2628.5,2.02725319]
[1739163679498,7.60818,2628.8,2628.5,2.02725319]
[1739163679690,3.80406,2628.8,2628.4,2.75433654]
[1739163679980,9.12375,2629.0,2628.7,2.75433654]
[1739163679981,3.0,2628.9,2628.7,2.75433654]
[1739163680183,3.0,2628.9,2628.7,3.51313654]
[1739163680390,5.32,2629.0,2628.7,7.31719654]
[1739163680722,3.80314,2629.5,2628.9,3.80381]
[1739163680942,9.95352,2629.6,2629.0,2.75433654]
[1739163680943,3.80315,2629.4,2629.0,2.75433654]
[1739163681442,9.12292,2629.6,2629.3,2.75433654]
[1739163681608,5.32,2629.6,2629.3,2.75433654]
[1739163682419,6.1506,2630.2,2629.3,2.75433654]
[1739163682621,0.8306,2630.2,2629.6,2.75433654]
[1739163682934,3.80215,2630.1,2629.7,0.7588]
[1739163683129,6.80218,2630.1,2629.7,0.7588]
[1739163683442,6.80218,2630.1,2629.6,2.75433654]
[1739163683443,3.0,2630.1,2629.6,2.75433654]
[1739163683641,3.80246,2629.9,2629.3,3.58323654]
[1739163684148,3.80275,2629.7,2629.3,3.58323654]
[1739163684313,3.80246,2629.9,2629.3,3.58323654]
[1739163684949,3.80281,2629.7,2629.3,3.58323654]
[1739163685346,6.80221,2630.1,2629.6,2.75433654]
[1739163685562,3.80221,2630.1,2629.6,2.75433654]
[1739163685846,5.32,2630.2,2629.9,3.58323654]
[1739163686045,3.80222,2630.1,2629.6,3.58323654]
[1739163686245,3.8027,2629.8,2629.3,3.58323654]
[1739163686625,3.8023,2630.0,2629.3,7.38639654]
[1739163686626,3.0,2629.9,2629.3,7.38639654]
[1739163687010,9.12202,2630.2,2629.6,2.75433654]
[1739163687215,12.92412,2630.2,2629.6,2.75433654]
[1739163687415,9.12202,2630.2,2629.6,2.75433654]
[1739163687616,9.12202,2630.2,2629.7,0.8289]
[1739163687828,9.12202,2630.2,2629.7,0.86597388]
[1739163688026,9.12175,2630.4,2629.9,2.75433654]
[1739163688227,3.80187,2630.3,2629.9,2.75433654]
[1739163688468,3.80202,2630.2,2630.0,0.03667206]
[1739163688672,9.12175,2630.4,2630.0,0.03667206]
[1739163688834,3.80209,2630.2,2630.0,0.03667206]
[1739163689039,3.80238,2630.0,2629.7,0.8289]
[1739163689237,3.80246,2629.9,2629.7,0.8289]
[1739163689438,3.80246,2629.9,2629.6,2.75433654]
[1739163689634,3.80258,2629.8,2629.6,2.75433654]
[1739163689838,3.80238,2630.0,2629.6,2.75433654]
[1739163690378,3.80238,2630.0,2629.7,0.03651485]
[1739163690555,3.80205,2630.2,2629.7,0.03651485]
[1739163691071,9.12176,2630.4,2629.9,2.75433654]
[1739163691372,3.80199,2630.2,2629.9,2.75433654]
[1739163691677,3.80213,2630.1,2630.0,0.03651485]
[1739163691850,3.0,2630.3,2630.0,0.03651485]
[1739163692183,3.802,2630.2,2630.0,0.03651485]
[1739163692375,3.80213,2630.1,2630.0,0.03651485]
[1739163692571,7.60413,2630.2,2630.0,0.03651485]
[1739163692775,7.60413,2630.2,2629.6,2.75433654]
[1739163693069,3.0,2630.2,2629.6,6.55713654]
[1739163693299,6.80201,2630.2,2629.7,0.03651485]
[1739163693519,5.32,2630.4,2629.9,2.75433654]
[1739163693665,9.12178,2630.4,2630.0,0.8289]
[1739163693865,6.80193,2630.3,2630.0,0.8289]
[1739163694066,3.0,2630.3,2630.0,0.8289]
[1739163694366,5.32,2630.4,2630.2,6.55631654]
[1739163694563,3.80141,2630.6,2630.2,2.75433654]
[1739163694781,3.0,2630.7,2630.2,6.55631654]
[1739163694985,3.80109,2630.9,2630.5,3.58323654]
[1739163695168,3.0,2630.8,2630.5,3.58323654]
[1739163695573,3.0,2630.8,2630.6,0.03634019]
[1739163695783,6.80113,2630.8,2630.6,0.03634019]
[1739163695971,3.0,2630.8,2630.6,0.03634019]
[1739163696367,3.80076,2631.1,2630.6,2.79067673]
[1739163696567,3.80084,2631.0,2630.6,2.79067673]
[1739163696816,3.0,2631.0,2630.6,2.79067673]
[1739163697375,6.80095,2631.0,2630.6,2.79067673]
[1739163697589,3.0,2631.0,2630.6,2.79067673]
[1739163698483,3.80112,2630.8,2630.6,2.79067673]
[1739163698668,3.80112,2630.8,2630.5,0.8289]
[1739163699015,3.80108,2630.9,2630.3,2.75433654]
[1739163699016,3.80162,2630.5,2630.3,2.75433654]
[1739163699716,3.80162,2630.5,2630.0,2.75433654]
[1739163700200,3.80162,2630.5,2630.0,6.55656654]
[1739163700399,3.0,2630.5,2630.3,2.75433654]
[1739163700975,9.12117,2630.8,2630.4,0.7693]
[1739163701218,3.80213,2630.1,2629.6,2.75433654]
[1739163701520,3.80234,2630.0,2629.6,2.75433654]
[1739163701826,3.80234,2630.0,2629.4,3.80302]
[1739163701827,3.80234,2630.0,2629.7,2.03259743]
[1739163702129,3.80213,2630.1,2629.7,2.03259743]
[1739163702598,7.60439,2630.1,2629.7,2.03259743]
[1739163703168,3.80229,2630.0,2629.7,2.03259743]
[1739163703369,7.5627926,2630.6,2629.7,2.03259743]
[1739163703370,3.0,2630.3,2629.7,2.03259743]
[1739163703588,3.80228,2630.0,2629.8,2.75138525]
[1739163704420,3.80212,2630.2,2629.8,2.75138525]
[1739163705293,3.0,2630.3,2629.8,2.75138525]
[1739163705498,6.80185,2630.3,2629.8,2.75138525]
[1739163705812,3.0,2630.3,2629.8,2.75138525]
[1739163706015,3.80199,2630.2,2629.8,2.75138525]
[1739163706214,3.0,2630.3,2629.8,2.75138525]
[1739163706723,3.0,2630.3,2629.8,6.55390525]
[1739163706923,3.80168,2630.5,2630.1,2.75138525]
[1739163707251,3.80152,2630.6,2630.1,3.54798525]
[1739163707418,3.0,2630.6,2630.1,7.35002525]
[1739163707725,6.80141,2630.6,2630.1,3.54798525]
[1739163708325,3.80141,2630.6,2630.1,7.35009525]
[1739163708733,3.80141,2630.6,2630.1,3.54798525]
[1739163709425,3.80141,2630.6,2630.1,7.35006525]
[1739163710036,3.80141,2630.6,2630.1,3.54798525]
[1739163710516,3.80167,2630.5,2630.1,3.54798525]
[1739163710716,3.8017,2630.4,2630.1,3.54798525]
[1739163711018,7.60354,2630.4,2630.1,3.54798525]
[1739163711522,5.32,2630.8,2630.2,0.7525]
[1739163711723,7.6015,2631.1,2630.7,3.50388525]
[1739163711927,3.0,2631.0,2630.7,3.50388525]
[1739163712628,3.80098,2630.9,2630.7,3.50388525]
[1739163713646,3.80098,2630.9,2630.7,0.7525]
[1739163714026,3.0,2631.0,2630.7,0.7525]
[1739163714348,7.15819291,2631.2,2630.7,3.50388525]
[1739163714557,10.95882291,2631.2,2630.7,3.50388525]
[1739163714849,7.15819291,2631.2,2630.7,3.50388525]
[1739163715054,7.15819291,2631.2,2630.7,7.30514525]
[1739163715413,7.15819291,2631.2,2631.0,2.75138525]
[1739163715618,1.83819291,2631.2,2631.0,2.75138525]
[1739163716163,1.83819291,2631.2,2631.1,0.7525]
[1739163717060,1.83819291,2631.2,2631.1,4.55319]
[1739163718254,1.83819291,2631.2,2631.1,0.7525]
[1739163718667,1.83819291,2631.2,2631.1,4.55319]
[1739163719184,1.83819291,2631.2,2631.1,5.10319]
[1739163719345,9.11926,2632.1,2631.4,0.7525]
[1739163719545,3.79926,2632.1,2631.7,2.75138525]
[1739163719845,0.7897,2631.8,2630.5,0.78028465]
[1739163720071,0.7897,2631.0,2630.6,2.75138525]
[1739163720247,3.80112,2630.9,2630.6,2.75138525]
[1739163721256,3.80111,2630.9,2630.6,2.75138525]
[1739163721457,3.80151,2630.6,2630.3,3.50388525]
[1739163721956,7.6024,2630.8,2630.3,3.50388525]
[1739163722156,3.80131,2630.7,2630.3,3.50388525]
[1739163722360,3.80143,2630.6,2630.3,3.50388525]
[1739163722560,0.7897,2630.9,2630.5,3.80154]
[1739163722770,4.59034,2631.2,2630.5,2.75138525]
[1739163722971,3.80115,2630.8,2630.5,2.75138525]
[1739163723298,3.80169,2630.5,2630.2,2.75138525]
[1739163723523,3.80218,2630.1,2629.9,3.50388525]
[1739163723678,3.80218,2630.1,2629.9,0.7525]
[1739163723880,3.80218,2630.1,2629.6,2.75138525]
[1739163723881,3.80224,2630.1,2629.6,2.75138525]
[1739163724805,3.80191,2630.3,2629.9,2.75138525]
[1739163725029,3.80202,2630.2,2629.9,2.75138525]
[1739163725507,3.80223,2630.1,2629.6,2.75138525]
[1739163725706,3.80267,2629.8,2629.6,2.75138525]
[1739163725904,3.80252,2629.9,2629.6,2.75138525]
[1739163726312,3.80217,2630.1,2629.6,2.75138525]
[1739163726514,3.80191,2630.3,2629.9,2.75138525]
[1739163727086,3.80201,2630.2,2629.9,2.75138525]
[1739163727408,3.80223,2630.1,2629.9,2.75138525]
[1739163727784,3.80223,2630.1,2629.6,2.75138525]
[1739163729429,3.80242,2629.9,2629.6,2.75138525]
[1739163729890,3.80223,2630.1,2629.6,2.75138525]
[1739163730085,3.80223,2630.1,2629.9,2.75138525]
[1739163730774,3.80188,2630.3,2629.9,2.75138525]
[1739163730979,5.32,2630.8,2630.2,2.75138525]
[1739163731191,3.80114,2630.8,2630.5,2.75138525]
[1739163731400,4.89258,2631.2,2630.5,2.75138525]
[1739163731605,3.80058,2631.2,2630.8,2.75138525]
[1739163731814,7.60125,2631.2,2630.8,2.75138525]
[1739163731992,7.60124,2631.2,2630.8,2.75138525]
[1739163732310,3.80058,2631.2,2630.8,2.75138525]
[1739163732514,3.79997,2631.6,2631.1,2.75138525]
[1739163732731,3.80014,2631.5,2631.1,2.75138525]
[1739163732903,3.79997,2631.6,2631.1,2.75138525]
[1739163733215,3.80022,2631.5,2631.1,2.75138525]
[1739163733426,3.79997,2631.6,2631.1,2.75138525]
[1739163733711,7.60006,2631.6,2631.1,2.75138525]
[1739163733913,3.79997,2631.6,2631.1,2.75138525]
[1739163734417,3.80014,2631.5,2631.1,2.75138525]
[1739163735082,3.79997,2631.6,2631.1,2.75138525]
[1739163735278,3.805,2631.8,2631.1,2.75138525]
[1739163735483,3.80035,2631.4,2631.1,2.75138525]
[1739163735682,3.80082,2631.1,2630.8,2.75138525]
[1739163736215,3.80067,2631.2,2630.8,2.75138525]
[1739163736632,7.60135,2631.2,2630.8,2.75138525]
[1739163736910,3.80044,2631.3,2630.8,2.75138525]
[1739163737338,3.0,2631.3,2630.8,2.75138525]
[1739163737487,3.80096,2631.0,2630.8,2.75138525]
[1739163737684,3.80096,2631.0,2630.5,2.75138525]
[1739163737889,0.805,2631.2,2630.2,9.60195]
[1739163737890,3.80141,2630.6,2630.2,2.75138525]
[1739163740225,3.80119,2630.8,2630.2,2.75138525]
[1739163740440,3.80127,2630.7,2630.2,2.75138525]
[1739163740731,3.80107,2630.9,2630.5,2.75138525]
[1739163741048,3.80114,2630.8,2630.5,2.75138525]
[1739163741224,3.80085,2631.0,2630.5,2.75138525]
[1739163741526,3.80085,2631.0,2630.5,6.55293525]
[1739163742022,5.32,2631.1,2630.7,0.7888]
[1739163742326,5.32,2631.1,2630.8,2.75138525]
[1739163742534,3.8003,2631.4,2630.8,6.55247525]
[1739163742995,3.8003,2631.4,2630.9,3.80097]
[1739163743194,3.80043,2631.3,2630.8,2.75138525]
[1739163743603,3.8003,2631.4,2630.8,2.75138525]
[1739163744008,3.8003,2631.4,2630.8,6.55248525]
[1739163744202,3.8003,2631.4,2630.8,6.55241525]
[1739163745135,3.80056,2631.2,2630.8,2.75138525]
[1739163745432,3.8003,2631.4,2630.8,2.75138525]
[1739163745631,3.80057,2631.2,2630.8,2.75138525]
[1739163745934,7.60068,2631.4,2630.8,2.75138525]
[1739163746095,6.80008,2631.6,2631.1,2.75138525]
[1739163746437,4.28978745,2632.5,2631.0,3.80078]
[1739163746438,3.79968,2631.9,2631.4,6.55163525]
[1739163746730,3.79968,2631.9,2631.4,2.75138525]
[1739163747030,7.59933,2631.9,2631.4,2.75138525]
[1739163747217,3.79965,2631.9,2631.4,2.75138525]
[1739163747439,3.7993,2632.1,2631.4,6.55161525]
[1739163747605,3.79962,2631.9,2631.4,2.75138525]
[1739163748583,3.7993,2632.1,2631.4,2.75138525]
[1739163748837,6.79896,2632.3,2631.8,0.7888]
[1739163749064,3.79926,2632.1,2631.8,0.7888]
[1739163749603,6.79896,2632.3,2631.8,0.7888]
[1739163751015,3.79896,2632.3,2631.8,0.7888]
[1739163751220,9.11889,2632.4,2632.0,2.75138525]
[1739163752062,3.79871,2632.5,2632.0,2.75138525]
[1739163752660,3.79839,2632.7,2632.1,3.79923]
[1739163752859,3.79839,2632.7,2632.0,6.55068525]
[1739163753069,3.79839,2632.7,2632.1,4.34914]
[1739163753227,3.79839,2632.7,2632.1,0.55]
[1739163753869,5.32,2632.8,2632.3,2.75138525]
[1739163754161,3.79842,2632.7,2632.3,2.75138525]
[1739163754764,3.79853,2632.6,2632.3,2.75138525]
[1739163755666,9.11826,2632.8,2632.3,2.75138525]
[1739163755834,12.9166,2632.8,2632.3,2.75138525]
[1739163756030,9.11826,2632.8,2632.3,2.75138525]
[1739163756633,12.91661,2632.8,2632.3,2.75138525]
[1739163756857,9.11826,2632.8,2632.3,2.75138525]
[1739163757579,3.79838,2632.7,2632.3,2.75138525]
[1739163758925,9.11826,2632.8,2632.3,2.75138525]
[1739163761553,5.32,2632.8,2632.3,6.55021525]
[1739163762351,5.32,2632.8,2632.3,2.75138525]
[1739163762586,9.11824,2632.8,2632.3,6.55029525]
[1739163763682,9.11824,2632.8,2632.4,2.02831269]
[1739163764891,5.32,2632.8,2632.5,3.79853]
[1739163765059,6.90421354,2633.5,2632.7,2.80411269]
[1739163765391,3.79767,2633.2,2632.7,6.60248269]
[1739163765583,3.79754,2633.3,2632.7,6.60248269]
[1739163765748,3.0,2633.4,2632.7,2.80411269]
[1739163765949,3.79751,2633.3,2632.7,2.80411269]
[1739163766149,3.0,2633.4,2632.7,0.7758]
[1739163766351,3.79789,2633.1,2632.5,3.79863]
[1739163766585,3.79797,2633.0,2632.5,3.79867]
[1739163766787,3.7982,2632.9,2632.4,2.80411269]
[1739163767153,4.6172,2632.9,2632.4,2.80411269]
[1739163767356,4.61719,2632.9,2632.4,2.80411269]
[1739163767561,3.79847,2632.7,2632.1,6.60324269]
[1739163768398,0.819,2632.9,2632.1,0.7758]
[1739163768567,3.79897,2632.3,2631.8,0.7758]
[1739163768762,3.79874,2632.5,2632.0,3.79934]
[1739163768965,3.79874,2632.5,2631.9,5.82773269]
[1739163770016,3.0,2632.7,2632.1,5.82754269]
[1739163770212,3.0,2632.7,2632.3,5.82725269]
[1739163770392,3.0,2632.7,2632.2,0.7758]
[1739163770590,6.79846,2632.7,2632.2,4.57489]
[1739163770888,5.32,2632.8,2632.3,3.79892]
[1739163771068,5.32,2632.8,2632.3,5.82723269]
[1739163772961,5.32,2632.8,2632.3,5.82718269]
[1739163773166,5.32,2632.8,2632.5,5.82697269]
[1739163773466,3.79835,2632.8,2632.3,2.02831269]
[1739163773967,7.59643,2632.9,2632.3,5.82724269]
[1739163774167,3.79825,2632.8,2632.3,5.82724269]
[1739163774506,3.79875,2632.5,2632.2,0.7758]
[1739163774801,3.79849,2632.7,2632.0,2.82571269]
[1739163775013,4.58168,2632.5,2632.0,2.82571269]
[1739163775193,4.58143,2632.7,2632.0,2.82571269]
[1739163775619,3.79867,2632.5,2632.0,2.82571269]
[1739163776486,4.58144,2632.7,2632.0,2.82571269]
[1739163776716,3.0,2632.6,2632.1,3.79921]
[1739163777286,6.79854,2632.6,2632.1,3.79921]
[1739163777506,6.79854,2632.6,2632.0,2.82571269]
[1739163777507,3.7987,2632.5,2632.0,2.82571269]
[1739163778319,9.1187,2632.5,2632.0,2.82571269]
[1739163779606,5.32,2632.5,2632.3,2.02831269]
[1739163779817,5.32,2632.5,2632.4,5.14621]
[1739163780325,5.32,2633.2,2632.8,0.7974]
[1739163780523,5.32,2633.2,2633.1,3.7978]
[1739163780693,5.32,2633.6,2633.0,5.82625269]
[1739163780885,5.32,2633.6,2633.4,3.79729]
[1739163781085,6.103,2633.7,2633.2,5.82586269]
[1739163781290,9.89995,2633.7,2633.2,2.02831269]
[1739163781900,3.79709,2633.6,2633.2,2.02831269]
[1739163782101,3.79708,2633.6,2633.0,2.02831269]
[1739163782310,3.79749,2633.4,2632.8,6.62388269]
[1739163782807,3.79749,2633.4,2633.0,2.02831269]
[1739163783225,3.79749,2633.4,2632.8,2.82571269]
[1739163783429,3.79749,2633.4,2632.6,2.02831269]
[1739163783430,3.79793,2633.1,2632.6,2.02831269]
[1739163783635,3.79804,2633.0,2632.5,0.7974]
[1739163783800,3.79804,2633.0,2632.6,2.02831269]
[1739163784006,3.79781,2633.1,2632.6,2.02831269]
[1739163784312,0.783,2633.2,2632.8,2.02831269]
[1739163784514,0.783,2633.2,2632.6,3.79851]
[1739163784515,3.79754,2633.3,2633.0,2.02831269]
[1739163784698,3.79754,2633.3,2632.8,2.02831269]
[1739163784904,3.79754,2633.3,2632.8,5.82654269]
[1739163785210,3.79754,2633.3,2632.8,2.02831269]
[1739163785415,5.32,2633.4,2633.0,6.62364269]
[1739163785728,5.32,2633.4,2633.0,0.7974]
[1739163785904,5.32,2633.4,2633.2,2.02831269]
[1739163786088,3.79701,2633.7,2633.2,2.02831269]
[1739163786536,7.59407,2633.7,2633.2,2.02831269]
[1739163786703,3.79722,2633.6,2633.0,2.82571269]
[1739163787087,7.59407,2633.7,2633.1,3.7978]
[1739163787296,3.79717,2633.6,2633.0,2.82571269]
[1739163787498,3.79732,2633.5,2632.8,2.02831269]
[1739163787795,3.0,2633.7,2632.8,2.02831269]
[1739163787796,0.8178,2633.4,2632.8,2.02831269]
[1739163788021,7.59512,2633.3,2632.6,2.02831269]
[1739163788210,3.79792,2633.1,2632.6,2.02831269]
[1739163788411,3.79792,2633.1,2632.8,2.02831269]
[1739163788732,3.79766,2633.2,2632.6,2.02831269]
[1739163788935,0.8178,2633.0,2632.2,0.7658]
[1739163789139,7.61576,2633.0,2632.1,2.02831269]
[1739163789362,0.8178,2632.5,2631.8,2.02831269]
[1739163789498,3.79898,2632.3,2631.6,5.82823269]
[1739163789827,3.79898,2632.3,2631.8,2.02831269]
[1739163790028,7.59807,2632.3,2631.8,2.02831269]
[1739163790226,3.79913,2632.2,2631.8,2.02831269]
[1739163790410,3.79898,2632.3,2631.8,2.02831269]
[1739163790811,4.61649,2632.5,2631.8,2.02831269]
[1739163791016,3.79898,2632.3,2631.8,2.02831269]
[1739163791224,3.79094453,2632.3,2631.8,2.02831269]
[1739163791430,3.0,2632.7,2632.1,2.02831269]
[1739163791431,6.79843,2632.7,2632.1,2.02831269]
[1739163791638,0.8178,2632.8,2632.3,2.02831269]
[1739163792140,3.79811,2632.9,2632.3,5.82726269]
[1739163792434,3.79811,2632.9,2632.3,2.02831269]
[1739163793156,3.79838,2632.8,2632.3,2.02831269]
[1739163793319,3.79839,2632.7,2632.3,2.02831269]
[1739163793712,3.79811,2632.9,2632.3,2.02831269]
[1739163793919,4.00917436,2633.1,2632.5,2.02831269]
[1739163793920,4.6157,2633.1,2632.5,2.02831269]
[1739163795173,3.7979,2633.1,2632.5,2.02831269]
[1739163795330,5.32,2633.2,2632.9,2.02831269]
[1739163795531,5.32,2633.2,2632.9,2.79411269]
[1739163795844,3.79709,2633.6,2633.1,2.02831269]
[1739163796065,3.79696,2633.7,2633.1,2.02831269]
[1739163796268,3.79696,2633.7,2633.3,2.02831269]
[1739163796759,3.79696,2633.7,2633.1,2.02831269]
[1739163797268,3.79709,2633.6,2633.1,2.02831269]
[1739163797834,0.8178,2633.8,2633.1,2.02831269]
[1739163798034,3.79715,2633.6,2633.1,2.02831269]
[1739163798245,3.79705,2633.7,2633.3,2.02831269]
[1739163800853,7.59409,2633.7,2633.3,2.02831269]
[1739163801785,7.59409,2633.7,2633.5,2.02831269]
[1739163801786,5.32,2633.7,2633.5,2.02831269]
[1739163802650,5.32,2633.7,2633.1,2.79411269]
[1739163802651,9.11695,2633.7,2633.1,2.79411269]
[1739163802954,8.32,2633.7,2633.1,2.02831269]
[1739163803153,3.79752,2633.3,2633.1,2.02831269]
[1739163803864,7.59469,2633.5,2633.1,2.02831269]
[1739163804101,3.79741,2633.4,2633.1,2.02831269]
[1739163804248,3.79733,2633.5,2633.1,2.02831269]
[1739163804442,3.79765,2633.3,2632.9,2.79411269]
[1739163804779,3.79765,2633.3,2632.5,3.79864]
[1739163804780,3.79792,2633.1,2632.6,0.7658]
[1739163804978,3.79803,2633.0,2632.6,0.7658]
[1739163806101,3.0,2633.2,2632.7,5.82660269]
[1739163806263,3.0,2633.2,2632.8,3.79823]
[1739163806678,5.32,2633.3,2632.8,3.79823]
[1739163807476,3.79768,2633.2,2632.7,5.82660269]
[1739163807681,3.7979,2633.1,2632.7,2.02831269]
[1739163808881,3.798,2633.0,2632.7,2.02831269]
[1739163809482,7.59604,2633.0,2632.7,2.02831269]
[1739163809706,3.798,2633.0,2632.7,2.02831269]
[1739163810480,3.79773,2633.2,2632.7,2.02831269]
[1739163810794,5.32,2633.3,2632.7,2.02831269]
[1739163810962,3.79768,2633.2,2632.7,5.82668269]
[1739163811351,5.32,2633.3,2632.7,2.02831269]
[1739163811549,3.79767,2633.2,2632.7,2.02831269]
[1739163812783,0.7989,2633.1,2632.7,2.02831269]
[1739163812968,3.79795,2633.0,2632.7,2.02831269]
[1739163813390,7.59601,2633.0,2632.7,2.02831269]
[1739163813692,3.79795,2633.0,2632.7,2.02831269]
[1739163815087,7.596,2633.0,2632.7,2.02831269]
[1739163815254,3.79813,2632.9,2632.7,2.02831269]
[1739163815457,3.79823,2632.8,2632.6,0.7658]
[1739163815892,3.79817,2632.9,2632.6,0.7658]
[1739163816055,3.79824,2632.8,2632.6,0.7658]
[1739163816456,3.79795,2633.0,2632.6,0.7658]
[1739163817875,3.79824,2632.8,2632.6,0.7658]
[1739163818075,0.7945,2632.8,2632.4,0.782]
[1739163818295,3.79862,2632.6,2632.4,0.782]
[1739163818591,3.79867,2632.5,2632.1,2.81031269]
[1739163819966,3.79862,2632.6,2632.1,2.81031269]
[1739163820190,3.79883,2632.4,2632.1,2.81031269]
[1739163820968,3.7986,2632.6,2632.1,2.81031269]
[1739163821172,3.79871,2632.5,2632.1,2.81031269]
[1739163821375,3.0,2632.7,2632.4,2.02831269]
[1739163821580,6.7985,2632.7,2632.4,2.02831269]
[1739163822057,3.79854,2632.6,2632.1,6.60947269]
[1739163822492,3.79854,2632.6,2632.1,2.81031269]
[1739163822792,3.79891,2632.4,2632.1,2.81031269]
[1739163823092,7.59785,2632.4,2632.1,2.81031269]
[1739163823272,3.79891,2632.4,2632.1,2.81031269]
[1739163823468,3.79896,2632.3,2632.1,2.81031269]
[1739163823734,3.7991,2632.2,2631.9,0.782]
[1739163823860,3.79927,2632.1,2631.8,2.25116433]
[1739163824064,3.79953,2631.9,2631.8,2.25116433]
[1739163825100,3.79927,2632.1,2631.8,2.25116433]
[1739163825266,7.59866,2632.1,2631.8,2.25116433]
[1739163825894,3.79927,2632.1,2631.8,2.25116433]
[1739163827176,3.79953,2631.9,2631.8,2.25116433]
[1739163827586,3.79953,2631.9,2631.8,2.02831269]
[1739163831715,3.79939,2632.0,2631.5,2.82071269]
[1739163831716,3.79996,2631.6,2631.5,2.82071269]
[1739163832019,3.80012,2631.5,2631.2,2.02831269]
[1739163832307,7.60035,2631.5,2631.2,2.02831269]
[1739163832487,7.60035,2631.5,2631.0,0.7924]
[1739163832488,3.80069,2631.1,2631.0,2.82071269]
[1739163832683,3.80091,2631.0,2630.8,2.02831269]
[1739163832890,3.80069,2631.1,2630.8,2.02831269]
[1739163833111,7.6015,2631.1,2630.8,2.02831269]
[1739163833300,3.80086,2631.0,2630.8,2.02831269]
[1739163833897,3.80069,2631.1,2630.8,2.02831269]
[1739163834115,3.80098,2630.9,2630.6,2.02831269]
[1739163834289,0.8147,2631.1,2630.6,2.02831269]
[1739163834290,3.80073,2631.1,2630.6,2.02831269]
[1739163834491,3.80073,2631.1,2630.8,2.02831269]
[1739163834980,3.80098,2630.9,2630.8,2.02831269]
[1739163836617,3.80137,2630.7,2630.2,2.82071269]
[1739163836779,3.80152,2630.6,2630.2,2.82071269]
[1739163836987,3.8018,2630.4,2630.0,2.82071269]
[1739163837206,7.6036,2630.4,2630.0,2.82071269]
[1739163837406,3.80205,2630.2,2630.0,2.82071269]
[1739163837922,3.80175,2630.4,2630.0,2.82071269]
[1739163838115,3.802,2630.2,2630.0,2.82071269]
[1739163838617,3.80175,2630.4,2630.0,2.82071269]
[1739163838923,3.80189,2630.3,2630.0,2.82071269]
[1739163839219,3.80201,2630.2,2630.0,2.82071269]
[1739163839390,3.80175,2630.4,2630.0,2.82071269]
[1739163839715,3.0,2630.5,2630.0,2.82071269]
[1739163840023,3.80183,2630.4,2630.0,2.82071269]
[1739163840208,3.80186,2630.3,2630.0,2.82071269]
[1739163840406,3.80204,2630.2,2630.0,2.02831269]
[1739163840603,3.80213,2630.1,2630.0,2.02831269]
[1739163840914,3.80204,2630.2,2630.0,2.02831269]
[1739163842022,4.61643,2630.4,2629.7,2.82071269]
[1739163842318,3.80173,2630.4,2630.1,2.02831269]
[1739163842528,3.80199,2630.2,2629.7,2.82071269]
[1739163844003,3.80222,2630.1,2629.7,2.82071269]
[1739163844219,3.80233,2630.0,2629.7,2.82071269]
[1739163845486,5.32,2630.4,2629.7,2.82071269]
[1739163845689,5.32,2630.4,2630.0,2.02831269]
[1739163846021,3.80191,2630.3,2630.0,2.02831269]
[1739163846190,3.80208,2630.2,2630.0,2.02831269]
[1739163846397,3.80233,2630.0,2629.7,2.82071269]
[1739163847539,3.80257,2629.8,2629.7,2.02831269]
[1739163847748,3.80257,2629.8,2629.4,2.02831269]
[1739163847896,3.8028,2629.7,2629.4,2.02831269]
[1739163848205,3.803,2629.5,2629.4,2.02831269]
[1739163848620,0.7685,2629.7,2629.1,2.02831269]
[1739163848843,3.80343,2629.2,2629.1,2.02831269]
[1739163848994,3.80358,2629.1,2628.8,2.83511269]
[1739163849193,3.80387,2628.9,2628.8,2.02831269]
[1739163849631,3.80358,2629.1,2628.8,2.02831269]
[1739163849930,0.7685,2629.2,2628.8,2.02831269]
[1739163850135,6.0885,2629.5,2628.8,2.02831269]
[1739163850339,3.80353,2629.2,2628.8,2.02831269]
[1739163850694,3.0,2629.4,2628.8,2.02831269]
[1739163851030,5.32,2629.5,2629.1,2.83511269]
[1739163851729,3.0,2629.7,2629.3,2.02831269]
[1739163851938,5.32,2629.7,2629.3,2.02831269]
[1739163852733,9.12272,2629.7,2629.3,2.02831269]
[1739163853036,3.80297,2629.6,2629.3,2.02831269]
[1739163853836,3.80297,2629.6,2629.1,2.83511269]
[1739163854037,3.80297,2629.6,2629.4,0.0356244]
[1739163854238,5.32,2629.7,2629.1,2.83511269]